[Event "Turkish Cup 2022"]
[Site "Sakarya"]
[Date "2022.03.27"]
[Round "4.44"]
[White "Hatirli, Ugur Can"]
[Black "Er, Mira"]
[Result "0-1"]
[ECO "D05"]
[WhiteElo "1818"]
[BlackElo "1415"]
[Annotator "NA"]
[PlyCount "112"]
[EventDate "2022.03.25"]
[EventType "swiss"]
[EventCountry "TUR"]
[SourceTitle "playchess.com"]
[Source "ChessBase"]
[SourceQuality "1"]
[TimeControl "5400+30"]

1. d4 {[%emt 0:01:00]} c5 {[%emt 0:01:00]} 2. e3 {[%emt 0:02:30]} Nf6 {[%emt 0:00:00]} 3. Nf3 {[%emt 0:00:30]} d5 {[%emt 0:01:00]} 4. c3 {[%emt 0:03:30]} Nc6 {[%emt 0:01:30]} 5. Bd3 {[%emt 0:00:30]} g6 {[%emt 0:00:00]} 6. Nbd2 {[%emt 0:00:30]} Bg7 {[%emt 0:00:00]} 7. Qe2 {[%emt 0:02:30]} O-O {[%emt 0:00:30]} 8. dxc5 {[%emt 0:01:30]} Nd7 {[%emt 0:02:30]} 9. Nb3 {[%emt 0:01:30]} Nde5 {[%emt 0:00:30]} 10. Nxe5 {[%emt 0:05:30]} Nxe5 {[%emt 0:00:30]} 11. Bc2 {[%emt 0:00:30]} Qc7 {[%emt 0:02:30]} 12. O-O {[%emt 0:08:30]} Ng4 {[%emt 0:02:30]} 13. f4 {[%emt 0:01:30]} a5 {[%emt 0:00:30]} 14. a4 {[%emt 0:02:30]} f5 {[%emt 0:03:30]} 15. Bd2 {[%emt 0:02:30]} e5 {[%emt 0:01:30]} 16. h3 {[%emt 0:01:30]} Nf6 {[%emt 0:00:30]} 17. fxe5 {[%emt 0:05:30]} Qxe5 {[%emt 0:00:30]} 18. Nd4 {[%emt 0:00:30]} Ne4 {[%emt 0:00:30]} 19. Bxe4 {[%emt 0:00:30]} Qxe4 {[%emt 0:02:30]} 20. Qf3 {[%emt 0:06:30]} Bd7 {[%emt 0:01:30]} 21. Qxe4 {[%emt 0:05:30]} dxe4 {[%emt 0:00:30]} 22. Rfc1 {[%emt 0:07:30]} Rfc8 {[%emt 0:00:30]} 23. Nb3 {[%emt 0:02:30]} Be6 {[%emt 0:01:30]} 24. Ra3 {[%emt 0:05:30]} Rd8 {[%emt 0:04:30]} 25. Be1 {[%emt 0:03:30]} Bf8 {[%emt 0:10:30]} 26. c4 {[%emt 0:05:30]} Rd3 {[%emt 0:01:30]} 27. Bf2 {[%emt 0:12:45]} Bh6 {[%emt 0:04:30]} 28. Nd4 {[%emt 0:02:24]} Rxd4 {[%emt 0:01:30]} 29. exd4 {[%emt 0:02:42]} Bxc1 {[%emt 0:00:30]} 30. d5 {[%emt 0:00:00]} Bd7 {[%emt 0:01:30]} 31. Rb3 {[%emt 0:01:08]} e3 {[%emt 0:00:30]} 32. Bh4 {[%emt 0:01:23]} g5 {[%emt 0:01:30]} 33. Bxg5 {[%emt 0:00:27]} e2 {[%emt 0:04:30]} 34. Bh4 {[%emt 0:00:03]} Bd2 {[%emt 0:00:00]} 35. Rxb7 {[%emt 0:02:41]} Bxa4 {[%emt 0:03:00]} 36. c6 {[%emt 0:03:42]} e1=Q+ {[%emt 0:01:30]} 37. Bxe1 {[%emt 0:00:04]} Bxe1 {[%emt 0:00:30]} 38. c7 {[%emt 0:01:39]} Rc8 {[%emt 0:00:30]} 39. b3 {[%emt 0:00:56]} Bd7 {[%emt 0:01:30]} 40. c5 {[%emt 0:00:30]} Bg3 {[%emt 0:00:30]} 41. d6 {[%emt 0:00:23]} Be5 {[%emt 0:00:30]} 42. b4 {[%emt 0:01:01]} Bd4+ {[%emt 0:00:30]} 43. Kh2 {[%emt 0:00:12]} axb4 {[%emt 0:00:30]} 44. c6 {[%emt 0:00:51]} Bxc6 {[%emt 0:00:00]} 45. Rb8 {[%emt 0:00:19]} Bd7 {[%emt 0:00:00]} 46. Rxb4 {[%emt 0:00:14]} Bc5 {[%emt 0:00:30]} 47. Rc4 {[%emt 0:00:48]} Bxd6+ {[%emt 0:00:30]} 48. g3 {[%emt 0:00:00]} Bxc7 {[%emt 0:01:30]} 49. Rd4 {[%emt 0:00:00]} Bc6 {[%emt 0:00:30]} 50. h4 {[%emt 0:00:14]} Be4 {[%emt 0:00:00]} 51. Kh3 {[%emt 0:00:19]} Bb6 {[%emt 0:00:00]} 52. Rd1 {[%emt 0:00:47]} Rc2 {[%emt 0:00:30]} 53. h5 {[%emt 0:00:00]} h6 {[%emt 0:00:30]} 54. Rd7 {[%emt 0:00:26]} Bg2+ {[%emt 0:00:30]} 55. Kh4 {[%emt 0:00:30]} Bf1 {[%emt 0:00:30]} 56. g4 {[%emt 0:00:30]} Bf2# {[%emt 0:00:30]} 0-1

[Event "Turkish Cup 2022"]
[Site "Sakarya"]
[Date "2022.03.27"]
[Round "4.45"]
[White "Zaimov, Berk"]
[Black "Serbulent, Huseyin"]
[Result "0-1"]
[ECO "B06"]
[WhiteElo "1498"]
[BlackElo "1775"]
[Annotator "NA"]
[PlyCount "92"]
[EventDate "2022.03.25"]
[EventType "swiss"]
[EventCountry "TUR"]
[SourceTitle "playchess.com"]
[Source "ChessBase"]
[SourceQuality "1"]
[TimeControl "5400+30"]

1. e4 {[%emt 0:06:00]} g6 {[%emt 0:01:00]} 2. d4 {[%emt 0:00:00]} Bg7 {[%emt 0:00:00]} 3. Nc3 {[%emt 0:01:00]} d6 {[%emt 0:00:00]} 4. Be3 {[%emt 0:00:00]} a6 {[%emt 0:00:30]} 5. Nf3 {[%emt 0:02:00]} Nd7 {[%emt 0:00:30]} 6. Bd3 {[%emt 0:02:30]} b5 {[%emt 0:01:30]} 7. Qd2 {[%emt 0:03:30]} Bb7 {[%emt 0:04:30]} 8. a4 {[%emt 0:07:30]} b4 {[%emt 0:00:30]} 9. Ne2 {[%emt 0:00:30]} c5 {[%emt 0:01:30]} 10. c3 {[%emt 0:00:00]} Qa5 {[%emt 0:04:30]} 11. O-O {[%emt 0:05:00]} Ngf6 {[%emt 0:02:30]} 12. e5 {[%emt 0:12:30]} Ne4 {[%emt 0:05:30]} 13. Bxe4 {[%emt 0:01:30]} Bxe4 {[%emt 0:02:30]} 14. Ng5 {[%emt 0:04:30]} Bf5 {[%emt 0:01:30]} 15. exd6 {[%emt 0:03:30]} exd6 {[%emt 0:00:30]} 16. Ng3 {[%emt 0:00:30]} bxc3 {[%emt 0:04:30]} 17. bxc3 {[%emt 0:00:30]} c4 {[%emt 0:00:00]} 18. Bf4 {[%emt 0:02:30]} O-O {[%emt 0:02:00]} 19. Bxd6 {[%emt 0:01:30]} Rfe8 {[%emt 0:01:30]} 20. Qf4 {[%emt 0:11:30]} h6 {[%emt 0:03:30]} 21. N5e4 {[%emt 0:02:30]} Bxe4 {[%emt 0:01:30]} 22. Nxe4 {[%emt 0:00:30]} g5 {[%emt 0:05:30]} 23. Qf3 {[%emt 0:05:30]} Qd5 {[%emt 0:00:30]} 24. Be5 {[%emt 0:03:30]} f6 {[%emt 0:02:30]} 25. Nd6 {[%emt 0:07:26]} Qxf3 {[%emt 0:00:30]} 26. gxf3 {[%emt 0:00:30]} fxe5 {[%emt 0:00:30]} 27. Nxe8 {[%emt 0:00:30]} Rxe8 {[%emt 0:00:30]} 28. Rfe1 {[%emt 0:02:39]} Kf7 {[%emt 0:00:30]} 29. Re4 {[%emt 0:03:31]} exd4 {[%emt 0:06:30]} 30. cxd4 {[%emt 0:00:28]} Rxe4 {[%emt 0:00:30]} 31. fxe4 {[%emt 0:00:30]} Bxd4 {[%emt 0:00:30]} 32. Rd1 {[%emt 0:00:17]} Ne5 {[%emt 0:00:00]} 33. Kf1 {[%emt 0:02:32]} Bb2 {[%emt 0:00:00]} 34. Rd8 {[%emt 0:08:31]} c3 {[%emt 0:01:30]} 35. Rc8 {[%emt 0:00:04]} Nd3 {[%emt 0:00:30]} 36. Ke2 {[%emt 0:00:47]} Nb4 {[%emt 0:00:30]} 37. Kd1 {[%emt 0:00:13]} c2+ {[%emt 0:00:30]} 38. Rxc2 {[%emt 0:00:30]} Nxc2 {[%emt 0:00:30]} 39. Kxc2 {[%emt 0:00:00]} Bd4 {[%emt 0:00:30]} 40. f3 {[%emt 0:00:28]} Ke6 {[%emt 0:00:30]} 41. Kd3 {[%emt 0:00:16]} Ke5 {[%emt 0:00:30]} 42. a5 {[%emt 0:00:25]} Bg1 {[%emt 0:01:30]} 43. h3 {[%emt 0:00:16]} Kd6 {[%emt 0:02:30]} 44. Kc4 {[%emt 0:00:21]} Bf2 {[%emt 0:00:30]} 45. Kb4 {[%emt 0:00:57]} Be1+ {[%emt 0:00:30]} 46. Ka4 {[%emt 0:00:00]} Ke5 {[%emt 0:00:30]} 0-1

[Event "Turkish Cup 2022"]
[Site "Sakarya"]
[Date "2022.03.27"]
[Round "4.46"]
[White "Aysoy, Veysi"]
[Black "Erke, Mustafa Yigit"]
[Result "1-0"]
[ECO "A89"]
[WhiteElo "1811"]
[BlackElo "1517"]
[Annotator "NA"]
[PlyCount "99"]
[EventDate "2022.03.25"]
[EventType "swiss"]
[EventCountry "TUR"]
[SourceTitle "playchess.com"]
[Source "ChessBase"]
[SourceQuality "1"]
[TimeControl "5400+30"]

1. d4 {[%emt 0:01:00]} f5 {[%emt 0:01:00]} 2. g3 {[%emt 0:03:30]} g6 {[%emt 0:00:30]} 3. Bg2 {[%emt 0:00:00]} Bg7 {[%emt 0:00:00]} 4. Nf3 {[%emt 0:02:00]} Nf6 {[%emt 0:00:00]} 5. O-O {[%emt 0:00:30]} O-O {[%emt 0:00:00]} 6. c4 {[%emt 0:00:30]} d6 {[%emt 0:01:00]} 7. Nc3 {[%emt 0:00:30]} Nc6 {[%emt 0:00:30]} 8. d5 {[%emt 0:01:30]} Ne5 {[%emt 0:00:00]} 9. Nxe5 {[%emt 0:01:30]} dxe5 {[%emt 0:00:00]} 10. Qb3 {[%emt 0:00:30]} Nd7 {[%emt 0:02:30]} 11. Rd1 {[%emt 0:03:30]} a5 {[%emt 0:05:30]} 12. Na4 {[%emt 0:06:30]} Kh8 {[%emt 0:04:30]} 13. c5 {[%emt 0:02:30]} b5 {[%emt 0:00:00]} 14. cxb6 {[%emt 0:06:30]} cxb6 {[%emt 0:01:00]} 15. d6 {[%emt 0:06:30]} Rb8 {[%emt 0:05:30]} 16. Bg5 {[%emt 0:12:30]} Bf6 {[%emt 0:01:30]} 17. Bh6 {[%emt 0:01:30]} Bg7 {[%emt 0:00:00]} 18. Qe6 {[%emt 0:10:30]} exd6 {[%emt 0:01:00]} 19. Bxg7+ {[%emt 0:01:30]} Kxg7 {[%emt 0:00:00]} 20. Qxd6 {[%emt 0:00:30]} Qf6 {[%emt 0:00:00]} 21. Qc7 {[%emt 0:00:30]} e4 {[%emt 0:01:30]} 22. Rac1 {[%emt 0:03:30]} f4 {[%emt 0:07:30]} 23. Bxe4 {[%emt 0:02:30]} fxg3 {[%emt 0:00:30]} 24. Qxg3 {[%emt 0:05:30]} Ne5 {[%emt 0:03:30]} 25. Nc3 {[%emt 0:05:30]} Qf4 {[%emt 0:08:30]} 26. e3 {[%emt 0:02:30]} Qxg3+ {[%emt 0:12:30]} 27. hxg3 {[%emt 0:00:30]} Bg4 {[%emt 0:01:30]} 28. Rd5 {[%emt 0:07:44]} Nf3+ {[%emt 0:00:00]} 29. Kf1 {[%emt 0:02:42]} Rbd8 {[%emt 0:01:00]} 30. Kg2 {[%emt 0:02:04]} Nd2 {[%emt 0:02:30]} 31. Rxd8 {[%emt 0:02:01]} Rxd8 {[%emt 0:00:30]} 32. Rc2 {[%emt 0:02:42]} Be6 {[%emt 0:04:30]} 33. Bc6 {[%emt 0:01:46]} Rd6 {[%emt 0:03:30]} 34. Ne4 {[%emt 0:00:55]} Nxe4 {[%emt 0:01:30]} 35. Bxe4 {[%emt 0:00:02]} Bxa2 {[%emt 0:00:30]} 36. Bf3 {[%emt 0:03:43]} Bd5 {[%emt 0:01:30]} 37. e4 {[%emt 0:00:48]} Bc6 {[%emt 0:00:00]} 38. e5 {[%emt 0:00:00]} Bxf3+ {[%emt 0:01:00]} 39. Kxf3 {[%emt 0:00:30]} Rd7 {[%emt 0:00:30]} 40. Ke4 {[%emt 0:00:30]} Kf7 {[%emt 0:00:30]} 41. f4 {[%emt 0:00:30]} a4 {[%emt 0:00:30]} 42. g4 {[%emt 0:00:00]} Rb7 {[%emt 0:22:53]} 43. f5 {[%emt 0:00:16]} b5 {[%emt 0:03:06]} 44. Rh2 {[%emt 0:00:44]} Kg8 {[%emt 0:04:41]} 45. f6 {[%emt 0:00:28]} b4 {[%emt 0:01:08]} 46. e6 {[%emt 0:00:41]} b3 {[%emt 0:01:28]} 47. f7+ {[%emt 0:00:34]} Kg7 {[%emt 0:00:55]} 48. Rxh7+ {[%emt 0:00:46]} Kxh7 {[%emt 0:00:30]} 49. f8=Q {[%emt 0:00:16]} a3 {[%emt 0:00:07]} 50. Qxa3 {[%emt 0:00:26]} 1-0

[Event "Turkish Cup 2022"]
[Site "Sakarya"]
[Date "2022.03.27"]
[Round "4.47"]
[White "Aydemir, Umut"]
[Black "Gok, Emre"]
[Result "0-1"]
[ECO "A90"]
[WhiteElo "1554"]
[BlackElo "1745"]
[Annotator "NA"]
[PlyCount "92"]
[EventDate "2022.03.25"]
[EventType "swiss"]
[EventCountry "TUR"]
[SourceTitle "playchess.com"]
[Source "ChessBase"]
[SourceQuality "1"]
[TimeControl "5400+30"]

1. d4 {[%emt 0:01:00]} f5 {[%emt 0:09:00]} 2. Nh3 {[%emt 0:00:30]} Nf6 {[%emt 0:00:30]} 3. g3 {[%emt 0:00:30]} e6 {[%emt 0:00:30]} 4. Bg2 {[%emt 0:00:30]} d5 {[%emt 0:00:30]} 5. c4 {[%emt 0:00:30]} c6 {[%emt 0:00:30]} 6. Qc2 {[%emt 0:00:00]} Bd6 {[%emt 0:00:30]} 7. Nd2 {[%emt 0:00:00]} O-O {[%emt 0:00:00]} 8. O-O {[%emt 0:00:00]} Qe8 {[%emt 0:10:00]} 9. Nf3 {[%emt 0:05:00]} Nbd7 {[%emt 0:01:30]} 10. Bf4 {[%emt 0:03:30]} Ne4 {[%emt 0:05:30]} 11. Bxd6 {[%emt 0:07:30]} Nxd6 {[%emt 0:00:30]} 12. b3 {[%emt 0:00:30]} Nf6 {[%emt 0:03:30]} 13. Ne5 {[%emt 0:01:30]} Nd7 {[%emt 0:05:30]} 14. f3 {[%emt 0:16:30]} Nxe5 {[%emt 0:01:30]} 15. dxe5 {[%emt 0:01:30]} Nf7 {[%emt 0:00:30]} 16. e4 {[%emt 0:00:30]} fxe4 {[%emt 0:13:30]} 17. fxe4 {[%emt 0:01:30]} d4 {[%emt 0:00:30]} 18. c5 {[%emt 0:02:30]} Nxe5 {[%emt 0:01:30]} 19. Qd2 {[%emt 0:00:30]} Ng4 {[%emt 0:12:30]} 20. Rxf8+ {[%emt 0:07:30]} Qxf8 {[%emt 0:01:30]} 21. Rf1 {[%emt 0:00:30]} Qe7 {[%emt 0:09:30]} 22. Qxd4 {[%emt 0:07:30]} e5 {[%emt 0:00:30]} 23. Qc3 {[%emt 0:01:30]} Be6 {[%emt 0:00:30]} 24. Nf2 {[%emt 0:00:30]} Rd8 {[%emt 0:02:30]} 25. Nd3 {[%emt 0:06:30]} Qg5 {[%emt 0:01:01]} 26. Re1 {[%emt 0:01:30]} Rd4 {[%emt 0:04:24]} 27. h3 {[%emt 0:04:30]} Nf6 {[%emt 0:04:17]} 28. Kh2 {[%emt 0:01:30]} Nh5 {[%emt 0:01:12]} 29. Nf2 {[%emt 0:11:53]} Qd2 {[%emt 0:01:42]} 30. Qf3 {[%emt 0:02:15]} Qxe1 {[%emt 0:03:23]} 31. Qxh5 {[%emt 0:00:05]} Qxf2 {[%emt 0:01:10]} 32. Qe8+ {[%emt 0:00:30]} Qf8 {[%emt 0:00:30]} 33. Qxe6+ {[%emt 0:00:30]} Kh8 {[%emt 0:00:00]} 34. Qxe5 {[%emt 0:00:00]} Rd2 {[%emt 0:01:22]} 35. Qc7 {[%emt 0:02:46]} h6 {[%emt 0:00:57]} 36. h4 {[%emt 0:01:40]} Qf2 {[%emt 0:00:30]} 37. Qc8+ {[%emt 0:00:30]} Kh7 {[%emt 0:00:05]} 38. Qh3 {[%emt 0:00:00]} Qxc5 {[%emt 0:02:08]} 39. h5 {[%emt 0:00:54]} Rd1 {[%emt 0:00:55]} 40. Qg4 {[%emt 0:00:09]} Rd6 {[%emt 0:01:08]} 41. e5 {[%emt 0:00:25]} Qxe5 {[%emt 0:00:26]} 42. Be4+ {[%emt 0:00:17]} Kg8 {[%emt 0:00:30]} 43. Qc8+ {[%emt 0:00:30]} Kf7 {[%emt 0:00:00]} 44. Bg6+ {[%emt 0:00:17]} Kf6 {[%emt 0:01:18]} 45. Qf8+ {[%emt 0:00:54]} Kg5 {[%emt 0:00:03]} 46. Qf2 {[%emt 0:03:51]} c5 {[%emt 0:01:27]} 0-1

[Event "Turkish Cup 2022"]
[Site "Sakarya"]
[Date "2022.03.28"]
[Round "5.4"]
[White "Baltaci, Ismail Tarik"]
[Black "Kirilmaz, Emre"]
[Result "0-1"]
[ECO "B13"]
[WhiteElo "2033"]
[BlackElo "2229"]
[Annotator "RC"]
[PlyCount "76"]
[EventDate "2022.03.25"]
[EventType "swiss"]
[EventCountry "TUR"]
[SourceTitle "playchess.com"]
[Source "ChessBase"]
[SourceQuality "1"]
[TimeControl "5400+30"]

1. e4 {[%emt 0:00:00]} c6 {[%emt 0:18:00]} 2. d4 {[%emt 0:00:30]} d5 {[%emt 0:00:30]} 3. exd5 {[%emt 0:00:30]} cxd5 {[%emt 0:00:30]} 4. Bd3 {[%emt 0:00:30]} Nc6 {[%emt 0:00:30]} 5. c3 {[%emt 0:00:30]} Nf6 {[%emt 0:00:30]} 6. Bf4 {[%emt 0:00:00]} Bg4 {[%emt 0:00:00]} 7. Qb3 {[%emt 0:00:00]} Qd7 {[%emt 0:00:00]} 8. Nd2 {[%emt 0:00:00]} Nh5 {[%emt 0:24:30]} 9. Be3 {[%emt 0:05:00]} e6 {[%emt 0:07:30]} 10. Bb5 {[%emt 0:13:30]} Nf6 {[%emt 0:03:30]} 11. Ngf3 {[%emt 0:06:30]} Bxf3 {[%emt 0:00:30]} 12. Nxf3 {[%emt 0:00:30]} Bd6 {[%emt 0:00:30]} 13. Ne5 {[%emt 0:00:30]} Bxe5 {[%emt 0:00:30]} 14. dxe5 {[%emt 0:00:30]} Ng4 {[%emt 0:05:30]} 15. Bf4 {[%emt 0:05:30]} Qc7 {[%emt 0:05:30]} 16. c4 {[%emt 0:15:30]} dxc4 {[%emt 0:06:30]} 17. Qc3 {[%emt 0:05:30]} Qb6 {[%emt 0:09:13]} 18. Bxc6+ {[%emt 0:01:30]} Qxc6 {[%emt 0:00:03]} 19. f3 {[%emt 0:04:30]} Nh6 {[%emt 0:04:11]} 20. Bxh6 {[%emt 0:02:30]} gxh6 {[%emt 0:00:30]} 21. O-O-O {[%emt 0:00:00]} Qc5 {[%emt 0:03:33]} 22. Rd4 {[%emt 0:03:00]} b5 {[%emt 0:03:51]} 23. Rhd1 {[%emt 0:01:30]} O-O {[%emt 0:04:37]} 24. Kb1 {[%emt 0:19:46]} Kh8 {[%emt 0:00:21]} 25. Qe3 {[%emt 0:01:37]} Rac8 {[%emt 0:01:30]} 26. Qf4 {[%emt 0:06:48]} Qe7 {[%emt 0:00:02]} 27. Qxh6 {[%emt 0:00:35]} Rfd8 {[%emt 0:00:31]} 28. Rd6 {[%emt 0:00:49]} b4 {[%emt 0:00:58]} 29. R1d4 {[%emt 0:01:01]} c3 {[%emt 0:00:36]} 30. Rh4 {[%emt 0:01:23]} f5 {[%emt 0:00:29]} 31. Rhd4 {[%emt 0:02:19]} cxb2 {[%emt 0:00:33]} 32. Qd2 {[%emt 0:00:58]} Rg8 {[%emt 0:00:29]} 33. Kxb2 {[%emt 0:01:41]} Qc7 {[%emt 0:00:19]} 34. Rxb4 {[%emt 0:00:22]} Rxg2 {[%emt 0:00:19]} 35. Rd8+ {[%emt 0:00:43]} Rxd8 {[%emt 0:00:48]} 36. Qxg2 {[%emt 0:00:30]} Qxe5+ {[%emt 0:00:00]} 37. Kb3 {[%emt 0:00:22]} a5 {[%emt 0:00:50]} 38. f4 {[%emt 0:00:38]} Qe3+ {[%emt 0:00:13]} 0-1

[Event "Turkish Cup 2022"]
[Site "Sakarya"]
[Date "2022.03.28"]
[Round "5.8"]
[White "Koc, Ilkay"]
[Black "Zor, Alber Kadir"]
[Result "1/2-1/2"]
[ECO "E04"]
[WhiteElo "1995"]
[BlackElo "2147"]
[Annotator "RC"]
[PlyCount "41"]
[EventDate "2022.03.25"]
[EventType "swiss"]
[EventCountry "TUR"]
[SourceTitle "playchess.com"]
[Source "ChessBase"]
[SourceQuality "1"]
[TimeControl "5400+30"]

1. d4 {[%emt 0:01:00]} Nf6 {[%emt 0:01:00]} 2. c4 {[%emt 0:00:30]} e6 {[%emt 0:00:30]} 3. g3 {[%emt 0:00:30]} d5 {[%emt 0:00:30]} 4. Nf3 {[%emt 0:00:00]} dxc4 {[%emt 0:00:00]} 5. Bg2 {[%emt 0:00:00]} c5 {[%emt 0:00:00]} 6. O-O {[%emt 0:00:00]} Nc6 {[%emt 0:00:00]} 7. Qa4 {[%emt 0:00:00]} Bd7 {[%emt 0:00:00]} 8. Qxc4 {[%emt 0:00:00]} b5 {[%emt 0:00:30]} 9. Qd3 {[%emt 0:00:00]} c4 {[%emt 0:00:30]} 10. Qc2 {[%emt 0:00:00]} Rc8 {[%emt 0:04:30]} 11. Nc3 {[%emt 0:09:00]} Be7 12. Bg5 {[%emt 0:02:30]} Qb6 {[%emt 0:19:00]} 13. Rfd1 {[%emt 0:19:30]} O-O {[%emt 0:15:30]} 14. a3 {[%emt 0:04:30]} h6 {[%emt 0:10:30]} 15. Be3 {[%emt 0:08:30]} Nd5 {[%emt 0:00:30]} 16. Nxd5 {[%emt 0:04:30]} exd5 {[%emt 0:00:30]} 17. Ne5 {[%emt 0:00:30]} Be6 {[%emt 0:00:30]} 18. f4 {[%emt 0:05:30]} Nxe5 {[%emt 0:14:30]} 19. fxe5 {[%emt 0:00:00]} a5 {[%emt 0:00:30]} 20. Bf2 {[%emt 0:00:00]} Rfd8 {[%emt 0:02:30]} 21. e4 {[%emt 0:05:30]} 1/2-1/2

[Event "Turkish Cup 2022"]
[Site "Sakarya"]
[Date "2022.03.28"]
[Round "5.18"]
[White "Gok, Emre"]
[Black "Bacak, Muhammed Kaan"]
[Result "1/2-1/2"]
[ECO "E60"]
[WhiteElo "1745"]
[BlackElo "2155"]
[Annotator "RC"]
[PlyCount "118"]
[EventDate "2022.03.25"]
[EventType "swiss"]
[EventCountry "TUR"]
[SourceTitle "playchess.com"]
[Source "ChessBase"]
[SourceQuality "1"]
[TimeControl "5400+30"]

1. b3 {[%emt 0:01:00]} Nf6 {[%emt 0:02:00]} 2. Bb2 {[%emt 0:00:30]} g6 {[%emt 0:02:30]} 3. Nf3 {[%emt 0:02:30]} Bg7 {[%emt 0:00:30]} 4. d4 {[%emt 0:01:30]} d6 {[%emt 0:00:30]} 5. e3 {[%emt 0:00:00]} O-O {[%emt 0:00:00]} 6. c4 {[%emt 0:01:00]} e5 {[%emt 0:03:00]} 7. dxe5 {[%emt 0:02:30]} Nfd7 {[%emt 0:00:30]} 8. Be2 {[%emt 0:01:30]} Nc6 {[%emt 0:00:30]} 9. O-O {[%emt 0:00:30]} Ndxe5 {[%emt 0:00:30]} 10. Nc3 {[%emt 0:02:30]} Bd7 {[%emt 0:02:30]} 11. Qd2 {[%emt 0:02:30]} Re8 {[%emt 0:01:30]} 12. Nd5 {[%emt 0:09:30]} a5 {[%emt 0:02:30]} 13. Rfd1 {[%emt 0:12:30]} a4 {[%emt 0:17:30]} 14. Nxe5 {[%emt 0:04:30]} Nxe5 {[%emt 0:08:30]} 15. f4 {[%emt 0:01:30]} a3 {[%emt 0:02:30]} 16. Bc3 {[%emt 0:04:30]} Nc6 {[%emt 0:02:30]} 17. Bxg7 {[%emt 0:00:30]} Kxg7 {[%emt 0:00:00]} 18. Qc3+ {[%emt 0:00:30]} f6 {[%emt 0:00:00]} 19. Bf3 {[%emt 0:19:30]} Be6 {[%emt 0:01:30]} 20. Rac1 {[%emt 0:01:30]} Rf8 {[%emt 0:11:30]} 21. e4 {[%emt 0:03:30]} Ne7 {[%emt 0:02:30]} 22. e5 {[%emt 0:07:30]} Bxd5 {[%emt 0:01:30]} 23. cxd5 {[%emt 0:00:42]} Rc8 {[%emt 0:03:30]} 24. Bg4 {[%emt 0:01:32]} Nf5 {[%emt 0:00:30]} 25. Bxf5 {[%emt 0:00:30]} gxf5 {[%emt 0:00:30]} 26. e6 {[%emt 0:00:00]} Qe7 {[%emt 0:00:30]} 27. Qd3 {[%emt 0:00:03]} c6 {[%emt 0:00:30]} 28. Qxf5 {[%emt 0:00:34]} cxd5 {[%emt 0:00:30]} 29. Qxd5 {[%emt 0:00:26]} Rxc1 {[%emt 0:01:30]} 30. Rxc1 {[%emt 0:00:13]} f5 {[%emt 0:00:00]} 31. Rd1 {[%emt 0:01:38]} Rf6 {[%emt 0:00:00]} 32. Re1 {[%emt 0:00:24]} h5 {[%emt 0:00:30]} 33. Re3 {[%emt 0:02:13]} h4 {[%emt 0:02:30]} 34. b4 {[%emt 0:01:26]} b5 {[%emt 0:04:30]} 35. Kf2 {[%emt 0:00:50]} Kh6 {[%emt 0:02:30]} 36. g4 {[%emt 0:02:00]} hxg3+ {[%emt 0:01:30]} 37. hxg3 {[%emt 0:00:07]} Kg7 {[%emt 0:00:30]} 38. g4 {[%emt 0:00:49]} Rh6 {[%emt 0:03:30]} 39. g5 {[%emt 0:01:55]} Rh2+ {[%emt 0:01:30]} 40. Kg3 {[%emt 0:00:17]} Qa7 {[%emt 0:00:30]} 41. Qb3 {[%emt 0:01:50]} Rh1 {[%emt 0:04:19]} 42. Qc3+ {[%emt 0:01:41]} Kh7 {[%emt 0:00:17]} 43. e7 {[%emt 0:00:33]} Qa8 {[%emt 0:00:13]} 44. Rf3 {[%emt 0:02:49]} Qe4 {[%emt 0:00:28]} 45. g6+ {[%emt 0:02:26]} Kxg6 {[%emt 0:01:25]} 46. Qe3 {[%emt 0:00:18]} Re1 {[%emt 0:00:21]} 47. Qxe4 {[%emt 0:02:51]} Rxe4 {[%emt 0:00:06]} 48. Rxa3 {[%emt 0:00:57]} Rxe7 {[%emt 0:00:09]} 49. Ra6 {[%emt 0:00:00]} Re3+ {[%emt 0:01:12]} 50. Kf2 {[%emt 0:00:10]} Re4 {[%emt 0:00:37]} 51. Rxd6+ {[%emt 0:00:17]} Kh5 {[%emt 0:00:11]} 52. a3 {[%emt 0:00:57]} Rxf4+ {[%emt 0:00:16]} 53. Ke3 {[%emt 0:00:25]} Rh4 {[%emt 0:01:58]} 54. Rd5 {[%emt 0:00:08]} Kg5 {[%emt 0:00:01]} 55. Rxb5 {[%emt 0:00:51]} Rh3+ {[%emt 0:00:11]} 56. Ke2 {[%emt 0:00:19]} Rxa3 {[%emt 0:00:30]} 57. Rb8 {[%emt 0:00:00]} Kf4 {[%emt 0:00:17]} 58. b5 {[%emt 0:00:00]} Ra2+ {[%emt 0:00:21]} 59. Kd3 {[%emt 0:00:15]} Rb2 {[%emt 0:01:40]} 1/2-1/2

[Event "Turkish Cup 2022"]
[Site "Sakarya"]
[Date "2022.03.28"]
[Round "5.22"]
[White "Kandaz, Berat Efe"]
[Black "Kilic, Eray"]
[Result "0-1"]
[ECO "D97"]
[WhiteElo "1519"]
[BlackElo "2088"]
[Annotator "RC"]
[PlyCount "72"]
[EventDate "2022.03.25"]
[EventType "swiss"]
[EventCountry "TUR"]
[SourceTitle "playchess.com"]
[Source "ChessBase"]
[SourceQuality "1"]
[TimeControl "5400+30"]

1. d4 {[%emt 0:01:00]} Nf6 {[%emt 0:01:00]} 2. c4 {[%emt 0:00:00]} g6 {[%emt 0:00:00]} 3. Nc3 {[%emt 0:00:00]} d5 {[%emt 0:00:00]} 4. Nf3 {[%emt 0:01:30]} Bg7 {[%emt 0:00:30]} 5. Qb3 {[%emt 0:00:30]} dxc4 {[%emt 0:00:30]} 6. Qxc4 {[%emt 0:00:00]} O-O {[%emt 0:00:00]} 7. e4 {[%emt 0:00:00]} a6 {[%emt 0:00:00]} 8. Be2 {[%emt 0:00:30]} b5 {[%emt 0:00:30]} 9. Qb3 {[%emt 0:00:30]} Bb7 {[%emt 0:12:30]} 10. e5 {[%emt 0:00:30]} Ne4 {[%emt 0:00:30]} 11. Be3 {[%emt 0:03:30]} Nxc3 {[%emt 0:05:30]} 12. bxc3 {[%emt 0:02:30]} Bd5 {[%emt 0:00:30]} 13. c4 {[%emt 0:03:30]} bxc4 {[%emt 0:01:30]} 14. Bxc4 {[%emt 0:00:30]} Bxf3 {[%emt 0:01:30]} 15. gxf3 {[%emt 0:00:30]} e6 {[%emt 0:00:30]} 16. Rc1 {[%emt 0:21:30]} Nc6 {[%emt 0:11:30]} 17. Qc3 {[%emt 0:00:30]} Ne7 {[%emt 0:07:30]} 18. Ke2 {[%emt 0:02:30]} Nf5 {[%emt 0:03:30]} 19. Bd3 {[%emt 0:02:30]} Rb8 {[%emt 0:01:30]} 20. Bxa6 {[%emt 0:11:30]} Ra8 {[%emt 0:19:30]} 21. Bc4 {[%emt 0:02:30]} Qh4 {[%emt 0:01:30]} 22. Bb3 {[%emt 0:11:30]} Rfd8 {[%emt 0:02:30]} 23. Rcd1 {[%emt 0:01:30]} Ra3 {[%emt 0:11:56]} 24. Qc4 {[%emt 0:17:28]} Nxe3 {[%emt 0:02:29]} 25. fxe3 {[%emt 0:00:31]} Bh6 {[%emt 0:00:40]} 26. Rdg1 {[%emt 0:01:11]} Rb8 {[%emt 0:03:35]} 27. Rg4 {[%emt 0:04:40]} Rxa2+ {[%emt 0:03:38]} 28. Bxa2 {[%emt 0:03:19]} Rb2+ {[%emt 0:00:01]} 29. Kd3 {[%emt 0:01:00]} Qf2 {[%emt 0:00:01]} 30. Qc1 {[%emt 0:03:02]} Rxa2 {[%emt 0:01:25]} 31. Rf1 {[%emt 0:01:28]} Qe2+ {[%emt 0:01:11]} 32. Ke4 {[%emt 0:01:08]} Ra1 {[%emt 0:00:21]} 33. Re1 {[%emt 0:01:08]} Qxe1 {[%emt 0:00:09]} 34. Qxe1 {[%emt 0:01:25]} Rxe1 {[%emt 0:00:30]} 35. f4 {[%emt 0:00:30]} Bf8 {[%emt 0:00:00]} 36. Rg2 {[%emt 0:00:00]} c5 {[%emt 0:00:00]} 0-1